[Event "Teplice Open 2022"]
[Site "Teplice"]
[Date "2022.06.20"]
[Round "3.10"]
[White "Kochavi, Ori"]
[Black "Stocek, Jiri"]
[Result "1/2-1/2"]
[ECO "B90"]
[WhiteElo "2365"]
[BlackElo "2533"]
[Annotator "TA"]
[PlyCount "111"]
[EventDate "2022.06.18"]
[EventType "swiss"]
[EventCountry "CZE"]
[SourceTitle "playchess.com"]
[Source "ChessBase"]
[SourceQuality "1"]
[TimeControl "40/5400+30:1800+30"]

{[%evp 13,111,22,31,29,25,33,25,-4,2,0,21,-1,26,30,35,17,17,15,18,11,22,20,33,17,52,12,73,7,8,7,8,8,10,8,8,13,22,0,0,-31,-31,-62,-64,-56,-29,-20,-33,-32,-20,-38,-12,-12,-13,-21,-27,-90,-81,-67,0,0,0,0,0,0,0,0,0,0,0,0,0,0,0,0,0,0,0,0,0,0,0,0,0,0,0,0,0,0,0,0,0,0,0,0,0,0,0,0,2,8]} 1. e4 {[%emt 0:00:02]} c5 {[%emt 0:07:24]} 2. Nf3 {[%emt 0:00:08]} d6 {[%emt 0:01:55]} 3. d4 {[%emt 0:00:04]} cxd4 {[%emt 0:00:15]} 4. Nxd4 {[%emt 0:00:03]} Nf6 {[%emt 0:00:10]} 5. Nc3 {[%emt 0:00:03]} a6 {[%emt 0:00:30]} 6. h3 {[%emt 0:02:02]} g6 {[%emt 0:03:30]} 7. g4 {[%emt 0:00:21]} Bg7 {[%emt 0:00:17]} 8. Be3 {[%emt 0:00:09] B90: Sicilian Najdorf: Unusual White 6th moves, 6 Be3 Ng4 and 6 Be3 e5.} O-O {[%emt 0:04:45]} 9. Bg2 {[%emt 0:08:06]} Nc6 {[%emt 0:03:17]} 10. Nb3 {[%emt 0:15:55] [#] White has an edge.} Be6 $146 {[%emt 0:13:19]} ({Predecessor:} 10... h5 11. g5 Nd7 12. f4 Nb6 13. Qe2 Qc7 14. O-O Be6 15. f5 Bc4 16. Qf2 Nd7 {1-0 (44) Gonzalez Ochoa,Y (2150)-Fernandez Bustamante,L (2119) Holguin 2019}) 11. Nd5 {[%emt 0:03:05]} b5 {[%emt 0:09:11]} 12. a4 {[%emt 0:13:05]} Rb8 {[%emt 0:06:29]} 13. axb5 {[%emt 0:00:42]} axb5 {[%emt 0:00:09]} 14. f4 {[%emt 0:08:46]} Nd7 {[%emt 0:10:40][%cal Bf6d7,Bd7b6,Bb6c8][%mdl 32]} 15. c3 {[%emt 0:00:32]} b4 {[%emt 0:01:07]} 16. O-O $1 {[%emt 0:01:56]} bxc3 {[%emt 0:00:16]} 17. bxc3 {[%emt 0:00:11]} Nb6 {[%emt 0:07:34]} 18. Nd2 {[%emt 0:11:34] [#] And now Ra6 would win.} ({Much worse is} 18. Nxb6 Rxb6 19. Nd4 Bc4 $11) 18... Nc8 {[%emt 0:00:37]} 19. Nc4 {[%emt 0:01:49]} Bd7 {[%emt 0:01:20]} (19... Bxc3 $1 $11 {remains equal.} 20. Rb1 Rxb1 21. Qxb1 Bg7) 20. Rb1 {[%emt 0:06:30]} ({White should try} 20. g5 $16) 20... Rxb1 $11 {[%emt 0:01:26]} 21. Qxb1 {[%emt 0:01:07]} e6 {[%emt 0:00:53][%cal Be7e6,Be6e5][%mdl 32]} 22. Ndb6 {[%emt 0:00:03]} Nxb6 {[%emt 0:08:01]} 23. Qxb6 {[%emt 0:01:14]} Bxc3 {[%emt 0:03:09]} 24. Rd1 {[%emt 0:04:19]} Qa8 {[%emt 0:02:39]} 25. Nxd6 {[%emt 0:04:30]} ({Avoid the trap} 25. Rxd6 $2 Rb8 26. Qc7 Rb7 27. Rxd7 Rxc7 28. Rxc7 Bd4 $19) 25... Qa4 {[%emt 0:01:51] Against Qb3} 26. Bf3 {[%emt 0:01:16]} e5 {[%emt 0:04:03]} 27. Nb5 {[%emt 0:03:12]} Ba5 {[%emt 0:00:24]} 28. Qc5 {[%emt 0:01:24]} Bb4 $36 {[%emt 0:02:26][%mdl 2048] Black is more active.} 29. Qd5 {[%emt 0:02:07]} Rd8 {[%emt 0:01:49] Strongly threatening ...Be8.} 30. Qc4 $1 {[%emt 0:03:11]} exf4 {[%emt 0:02:07]} 31. Bxf4 {[%emt 0:01:46] [#]} Be6 $1 {[%emt 0:01:00]} 32. Rxd8+ {[%emt 0:00:30]} Nxd8 {[%emt 0:00:03]} 33. Qc7 {[%emt 0:02:41]} (33. Qd3 $5 {[%cal Rd3d8]} Nc6 34. Kg2 $15) 33... Ba5 {[%emt 0:00:21]} 34. Qb8 {[%emt 0:02:07]} (34. Qc5 $1 $11) 34... Qa1+ {[%emt 0:00:45]} 35. Kh2 {[%emt 0:00:03]} Qf1 {[%emt 0:01:06]} (35... Qb2+ $15 36. Bg2 Bc4) 36. Bg2 {[%emt 0:00:34] The position is equal.} Qf2 {[%emt 0:01:19] ...Bb6 is the strong threat.} 37. Bc7 {[%emt 0:02:06] Against Bb6} Bxc7+ {[%emt 0:00:46]} 38. Qxc7 {[%emt 0:00:05]} Qf6 {[%emt 0:00:40]} 39. Qd6 {[%emt 0:01:39]} Nb7 {[%emt 0:01:03]} 40. Qb8+ {[%emt 0:00:10]} Nd8 {[%emt 0:00:30]} 41. Qd6 {[%emt 0:02:01]} h6 {[%emt 0:09:57]} 42. Nd4 {[%emt 0:05:53]} Kg7 {[%emt 0:03:42]} 43. e5 {[%emt 0:00:10]} Qg5 {[%emt 0:01:53]} 44. Kg3 {[%emt 0:00:30] Black must now prevent Nf3.} Qe3+ {[%emt 0:01:27]} 45. Kh2 {[%emt 0:00:16] Active counter play!} Qf4+ {[%emt 0:00:28]} 46. Kh1 {[%emt 0:00:06]} Qc1+ {[%emt 0:00:49]} 47. Kh2 {[%emt 0:00:05]} Qf4+ {[%emt 0:00:03]} 48. Kh1 {[%emt 0:00:02]} Qc1+ {[%emt 0:00:45]} 49. Kh2 {[%emt 0:00:05]} Qc8 {[%emt 0:00:07]} 50. Bf3 {[%emt 0:02:42]} Kg8 {[%emt 0:04:05]} 51. Kg3 {[%emt 0:03:15]} Kg7 {[%emt 0:03:01]} 52. h4 {[%emt 0:01:00]} Kg8 {[%emt 0:00:56]} 53. h5 {[%emt 0:00:30]} gxh5 $1 {[%emt 0:00:14]} 54. gxh5 {[%emt 0:00:48]} Qd7 {[%emt 0:01:04]} 55. Kf4 {[%emt 0:07:06]} Qe8 {[%emt 0:01:01]} 56. Be4 {[%emt 0:01:28] Weighted Error Value: White=0.10 (very precise) /Black=0.07 (flawless)} 1/2-1/2

[Event "Teplice Open 2022"]
[Site "Teplice"]
[Date "2022.06.20"]
[Round "3.11"]
[White "Ali Marandi, Cemil Can"]
[Black "Wagh Suyog"]
[Result "1/2-1/2"]
[ECO "E52"]
[WhiteElo "2532"]
[BlackElo "2352"]
[Annotator "TA"]
[PlyCount "60"]
[EventDate "2022.06.18"]
[EventType "swiss"]
[EventCountry "CZE"]
[SourceTitle "playchess.com"]
[Source "ChessBase"]
[SourceQuality "1"]
[TimeControl "40/5400+30:1800+30"]

{[%evp 15,60,0,3,0,0,0,0,-45,-33,-31,0,0,0,0,-10,-16,0,-22,0,-31,-18,-42,-59,-59,-60,-62,-69,-114,-83,-83,-85,-94,-50,-47,-37,-77,-78,-109,-98,-115,-114,-112,-47,-41,-33,-120,-104]} 1. d4 {[%emt 0:00:02]} Nf6 {[%emt 0:01:24]} 2. c4 {[%emt 0:00:06]} e6 {[%emt 0:01:00]} 3. Nc3 {[%emt 0:00:23]} Bb4 {[%emt 0:01:50]} 4. e3 {[%emt 0:01:25]} O-O {[%emt 0:02:20]} 5. Bd2 {[%emt 0:00:22]} d5 {[%emt 0:10:58]} 6. Nf3 {[%emt 0:00:19]} b6 {[%emt 0:00:47]} 7. cxd5 {[%emt 0:01:17]} exd5 {[%emt 0:01:05]} 8. Bd3 {[%emt 0:00:56]} Bb7 {[%emt 0:04:38]} 9. Qc2 {[%emt 0:01:34] E52: Nimzo-Indian: Rubinstein: 4...0-0 5 Nf3 d5 6 Bd3 b6.} a6 {[%emt 0:06:18]} 10. O-O {[%emt 0:12:25]} Bd6 {[%emt 0:03:18]} 11. Ne5 {[%emt 0:07:29] The position is equal.} c5 {[%emt 0:04:46]} 12. f4 {[%emt 0:01:41]} cxd4 {[%emt 0:29:52]} (12... Nc6 {keeps more tension.} 13. a3 Re8 14. Rac1 cxd4 15. Nxc6 Bxc6 16. exd4 Qd7) 13. exd4 {[%emt 0:00:11]} Nc6 {[%emt 0:00:17] [#]} 14. Nxc6 $146 {[%emt 0:00:51]} ({Predecessor:} 14. Ne2 Rc8 15. Qd1 Ne4 16. Rc1 Ne7 17. Ng3 b5 18. Qe2 Nxd2 19. Qxd2 Rxc1 20. Rxc1 {1-0 (32) O'Connell,G (2160)-Brady,S (2364) Dublin 2012}) 14... Bxc6 {[%emt 0:00:06]} 15. Be1 {[%emt 0:00:59]} Be7 {[%emt 0:04:48]} 16. Rd1 {[%emt 0:04:20]} Re8 {[%emt 0:03:23]} 17. Bg3 {[%emt 0:07:19]} (17. Bh4 $5 {[%cal Rh4f6]}) 17... b5 {[%emt 0:01:08]} 18. a3 {[%emt 0:02:17]} Qb6 {[%emt 0:02:23]} 19. Kh1 {[%emt 0:01:37]} h6 {[%emt 0:00:11]} 20. Qb3 {[%emt 0:03:54]} Qb7 {[%emt 0:05:14]} 21. Bb1 {[%emt 0:01:15]} b4 {[%emt 0:05:43]} 22. axb4 {[%emt 0:01:28]} Bxb4 {[%emt 0:00:27]} 23. f5 {[%emt 0:04:53]} Bxc3 {[%emt 0:03:12]} 24. Qxc3 {[%emt 0:00:18]} Ne4 {[%emt 0:00:10]} 25. Qa3 {[%emt 0:01:56][%cal Of5f6]} f6 {[%emt 0:01:19]} 26. Rc1 {[%emt 0:07:32]} Rac8 {[%emt 0:00:01]} 27. Bf4 {[%emt 0:01:38]} Bb5 {[%emt 0:00:51]} 28. Rfe1 {[%emt 0:04:21] [#]} Qd7 {[%emt 0:04:11]} ({Better is} 28... Rxc1 $1 $17 29. Rxc1 Qd7) 29. Rxc8 $15 {[%emt 0:01:10]} Rxc8 {[%emt 0:00:25]} 30. Bxe4 {[%emt 0:00:14]} (30. Qf3 $15) 30... dxe4 {[%emt 0:00:05] Weighted Error Value: White=0.21 (precise) /Black=0.11 (very precise)} 1/2-1/2

[Event "Teplice Open 2022"]
[Site "Teplice"]
[Date "2022.06.20"]
[Round "3.12"]
[White "Stijve, Theo"]
[Black "Pultinevicius, Paulius"]
[Result "0-1"]
[ECO "C46"]
[WhiteElo "2341"]
[BlackElo "2536"]
[Annotator "TA"]
[PlyCount "138"]
[EventDate "2022.06.18"]
[EventType "swiss"]
[EventCountry "CZE"]
[SourceTitle "playchess.com"]
[Source "ChessBase"]
[SourceQuality "1"]
[TimeControl "40/5400+30:1800+30"]

{[%evp 9,138,0,38,23,46,20,25,8,28,0,0,0,2,19,0,8,20,-31,-38,-40,-46,-30,-35,-39,-35,-37,-25,-21,-17,-112,-106,-101,-120,-115,-130,-204,-204,-200,-200,-213,-112,-112,-112,-112,-112,-112,-8,-72,-80,-76,-8,-38,0,-80,-80,-80,0,-8,0,-29,-29,-34,5611,-35,-39,-112,-112,-112,-112,-112,-112,-112,0,-112,-112,-112,-112,-112,-112,-112,-112,-112,0,-112,0,-112,-112,-112,-112,-156,-112,-112,0,-156,-156,-156,-156,-507,-431,-29944,-29951,-12837,-29937,-12850,-12835,-12268,-10956,-6782,-6204,-5466,-5085,-2847,-793,-726,-643,-1154,-3913,-1547,-1449,-29967,-29967,-29988,-29989,-29989,-29990,-29990,-29979,-29981,-29982,-29986,-29985]} 1. e4 {[%emt 0:02:57]} e5 {[%emt 0:00:11]} 2. Nf3 {[%emt 0:00:43]} Nc6 {[%emt 0:00:05]} 3. Nc3 {[%emt 0:00:26]} g6 {[%emt 0:08:34]} 4. Bc4 {[%emt 0:04:08]} Bg7 {[%emt 0:01:16]} 5. d3 {[%emt 0:01:43]} h6 {[%emt 0:07:56]} 6. Be3 {[%emt 0:04:25] C46: 3 Nc3: Unusual Black 3rd moves.} d6 {[%emt 0:06:17] [#]} 7. a4 $146 {[%emt 0:05:07]} ({Predecessor:} 7. h3 Be6 8. Qd2 Nge7 9. Bxe6 fxe6 10. d4 exd4 11. Nxd4 Nxd4 12. Bxd4 e5 13. Be3 Qd7 {½-½ (81) Andrade,G (1885)-Dos Santos Dutra,F (2270) Campo Grande 2019}) 7... Nge7 {[%emt 0:04:51]} 8. a5 {[%emt 0:07:03] White has an edge.} a6 {[%emt 0:09:09]} 9. Qb1 {[%emt 0:05:10]} O-O {[%emt 0:03:48]} 10. Qa2 {[%emt 0:03:11]} Nd4 {[%emt 0:18:42]} 11. Bxd4 {[%emt 0:14:49]} exd4 {[%emt 0:00:05]} 12. Ne2 {[%emt 0:00:38]} c6 {[%emt 0:01:26]} 13. Nfxd4 {[%emt 0:04:13]} (13. Nexd4 d5 14. exd5 cxd5 $15) (13. O-O $11) 13... d5 $15 {[%emt 0:00:35]} 14. exd5 {[%emt 0:00:26]} cxd5 {[%emt 0:00:09]} 15. Bb3 {[%emt 0:00:41]} Nc6 $36 {[%emt 0:05:53][%mdl 2048] Black has the initiative.} 16. Nxc6 {[%emt 0:05:24]} bxc6 {[%emt 0:01:20]} 17. O-O {[%emt 0:00:16]} Rb8 {[%emt 0:00:30][%cal Ba8b8,Bb8b2,Bb2f2][%mdl 32]} 18. Rfe1 {[%emt 0:08:48]} h5 {[%emt 0:02:41]} 19. c4 {[%emt 0:09:09]} (19. d4 $11 {remains equal.}) 19... dxc4 $17 {[%emt 0:02:18]} 20. Bxc4 {[%emt 0:01:11]} Rxb2 {[%emt 0:00:35]} 21. Qa3 {[%emt 0:00:49]} Re8 $1 {[%emt 0:10:56]} 22. Nc3 {[%emt 0:06:50] [#]} (22. d4 $17 {is a better defense.} Bxd4 23. Qf3) 22... Rxf2 $3 $19 {[%emt 0:05:23][%mdl 512]} 23. Rxe8+ {[%emt 0:06:13]} (23. Kxf2 {gets mated.} Bd4+) 23... Qxe8 {[%emt 0:00:05]} 24. Ne4 {[%emt 0:01:37]} Bxa1 {[%emt 0:03:31]} ({Black should try} 24... Re2 $19 25. Rf1 Be6) 25. Qxa1 $17 {[%emt 0:02:18]} Rf5 {[%emt 0:00:41]} 26. Nf6+ {[%emt 0:02:37] [#]} Rxf6 $1 {[%emt 0:00:08]} 27. Qxf6 {[%emt 0:00:02][%mdl 4096] Endgame KQB-KQB} Qe1+ {[%emt 0:00:34]} 28. Qf1 {[%emt 0:00:02]} Qe7 {[%emt 0:00:09] Black is more active.} 29. d4 {[%emt 0:01:36]} Kg7 {[%emt 0:02:32]} (29... Be6 $17 {...Bxc4 is the strong threat.} 30. Bxa6 Bd5) 30. h3 $11 {[%emt 0:00:11]} Qf6 {[%emt 0:03:32]} (30... Qe3+ {is more complex.} 31. Qf2 Qc1+ 32. Qf1 Qxf1+ 33. Bxf1 Kf6) 31. Bxa6 {[%emt 0:01:01]} (31. Qxf6+ $11 Kxf6 32. h4) 31... Qxd4+ $17 {[%emt 0:00:07]} 32. Kh1 {[%emt 0:00:16]} Be6 {[%emt 0:01:02]} (32... Bxa6 $17 33. Qxa6 c5) 33. Bb7 {[%emt 0:01:04]} c5 {[%emt 0:01:15]} 34. a6 {[%emt 0:00:22]} (34. Qg1 $5 {[%cal Ra5a6]} Qc3 35. a6 $11) 34... c4 {[%emt 0:00:04]} 35. Qg1 {[%emt 0:01:09]} Qxg1+ {[%emt 0:00:23]} 36. Kxg1 $15 {[%emt 0:00:01] Strongly threatening a7. KB-KB} c3 {[%emt 0:00:23] And now ...c2 would win.} 37. a7 {[%emt 0:01:25]} (37. Be4 $15) 37... c2 $17 {[%emt 0:00:04]} 38. a8=Q {[%emt 0:00:08]} c1=Q+ {[%emt 0:00:04] KQB-KQB} 39. Kh2 {[%emt 0:00:25]} Qf4+ {[%emt 0:02:05]} 40. Kh1 {[%emt 0:00:42]} Qc1+ {[%emt 0:00:20]} 41. Kh2 {[%emt 0:02:45]} Qc7+ {[%emt 0:00:46]} 42. Kh1 {[%emt 0:01:21]} g5 {[%emt 0:00:09]} 43. Bd5 {[%emt 0:06:30]} Qc1+ {[%emt 0:01:08]} 44. Kh2 {[%emt 0:00:34]} Qf4+ {[%emt 0:01:30]} 45. Kh1 {[%emt 0:00:23]} Qc1+ {[%emt 0:11:33]} 46. Kh2 {[%emt 0:00:49]} Qc7+ {[%emt 0:00:23]} 47. Kh1 $1 {[%emt 0:00:26]} Bc8 {[%emt 0:01:38]} 48. Qa1+ {[%emt 0:06:00]} f6 {[%emt 0:00:04]} 49. Qa4 {[%emt 0:01:19]} Qe7 {[%emt 0:02:53] Prevents Qe8. Threatens to win with ...Qe1+.} 50. Qa8 {[%emt 0:02:48]} Qc7 {[%emt 0:01:32]} (50... Qe1+ {seems wilder.} 51. Kh2 Qe5+ 52. Kh1 Be6) 51. Qa4 $1 {[%emt 0:00:21]} g4 {[%emt 0:05:24]} 52. hxg4 {[%emt 0:04:27]} ({Don't play} 52. Qe8 gxh3 53. Qxh5 hxg2+ 54. Kxg2 Qc2+ 55. Kg3 Qc7+ 56. Kg2 Qc2+ 57. Kg3 Qc7+ 58. Kg2 $15) 52... hxg4 {[%emt 0:00:12]} 53. g3 $2 {[%emt 0:07:05]} (53. Qc6 $17 {is more resistant.} Qxc6 54. Bxc6) 53... Qxg3 $19 {[%emt 0:03:23]} ({Weaker is} 53... Qc1+ 54. Kh2 $17) 54. Qa7+ {[%emt 0:01:01]} (54. Qe4 $19 Qd6 55. Kg1) 54... Kh6 {[%emt 0:00:20]} 55. Qf7 {[%emt 0:00:44]} Qh3+ {[%emt 0:00:36]} 56. Kg1 {[%emt 0:00:02]} Qe3+ {[%emt 0:00:13]} 57. Kg2 {[%emt 0:00:25]} Qe2+ {[%emt 0:00:44]} 58. Kg1 {[%emt 0:00:26]} Qd1+ {[%emt 0:00:42]} 59. Kg2 {[%emt 0:00:35]} Qc2+ {[%emt 0:00:24]} 60. Kg1 {[%emt 0:01:04]} Qb1+ {[%emt 0:00:06]} (60... Qc3 $142 61. Bc4 Bf5 62. Qf8+ Kg5 63. Qg8+ Bg6 64. Qd5+ Kf4 65. Qd6+ Kf3 66. Bd5+ Be4 67. Bxe4+ Kxe4) 61. Kg2 {[%emt 0:00:34]} Qb2+ {[%emt 0:00:06]} 62. Kg3 {[%emt 0:01:02]} Qe5+ {[%emt 0:00:08]} 63. Kg2 {[%emt 0:00:30]} Bf5 {[%emt 0:03:08] ( -> ...Kg5)} 64. Qf8+ {[%emt 0:01:11]} Kg5 {[%emt 0:00:05] Black mates.} 65. Qa8 {[%emt 0:00:18]} Qe2+ {[%emt 0:00:39]} 66. Kg3 {[%emt 0:00:16]} Qe3+ {[%emt 0:00:20]} 67. Kg2 {[%emt 0:00:16]} Kf4 {[%emt 0:01:13]} 68. Qb8+ {[%emt 0:01:24] [#]} Qe5 $1 {[%emt 0:00:11]} 69. Qb7 {[%emt 0:00:37] [#]} Qxd5+ $3 {[%emt 0:00:11][%mdl 512] Both players deserved the win here.  Weighted Error Value: White=0.36/Black=0.29 (precise)} 0-1

[Event "Teplice Open 2022"]
[Site "Teplice"]
[Date "2022.06.20"]
[Round "3.13"]
[White "Kozak, Adam"]
[Black "Mikes, Jan"]
[Result "1/2-1/2"]
[ECO "E94"]
[WhiteElo "2532"]
[BlackElo "2349"]
[Annotator "TA"]
[PlyCount "64"]
[EventDate "2022.06.18"]
[EventType "swiss"]
[EventCountry "CZE"]
[SourceTitle "playchess.com"]
[Source "ChessBase"]
[SourceQuality "1"]
[TimeControl "40/5400+30:1800+30"]

{[%evp 15,64,31,38,31,60,58,54,42,47,34,33,35,59,0,0,15,18,-2,-4,0,27,22,29,0,10,0,9,0,108,0,0,0,0,0,0,0,12,16,18,18,19,19,24,19,19,19,19,19,19,19,30]} 1. Nf3 {[%emt 0:03:18]} Nf6 {[%emt 0:00:48]} 2. c4 {[%emt 0:00:15]} g6 {[%emt 0:00:09]} 3. Nc3 {[%emt 0:00:07]} Bg7 {[%emt 0:00:06]} 4. e4 {[%emt 0:00:08]} d6 {[%emt 0:00:04]} 5. d4 {[%emt 0:00:07]} O-O {[%emt 0:00:37]} 6. Be2 {[%emt 0:00:37]} e5 {[%emt 0:00:06]} 7. O-O {[%emt 0:00:07]} Bg4 {[%emt 0:00:51]} 8. d5 {[%emt 0:01:07]} a5 {[%emt 0:01:02]} 9. Ne1 {[%emt 0:02:14] E94: King's Indian: Classical: 6 Be2 e5 7 0-0: Various Black 7th moves.} Bd7 {[%emt 0:00:06]} 10. Nd3 {[%emt 0:02:33]} Na6 {[%emt 0:00:31]} 11. Be3 {[%emt 0:07:27] White is slightly better.} b6 {[%emt 0:00:13] [#]} 12. h3 $146 {[%emt 0:05:30]} ({Predecessor:} 12. f4 exf4 13. Bxf4 Nc5 14. Nxc5 bxc5 15. e5 Ne8 16. Ne4 dxe5 17. Bg5 f6 18. Bh4 {½-½ (52) Kozak,A (2518)-Ivanisevic,I (2606) Tornelo INT 2021}) 12... Nc5 {[%emt 0:02:13]} 13. Nxc5 {[%emt 0:03:08]} (13. Bg5 {is more complex.} h6 14. Nxc5 bxc5 15. Bh4) 13... bxc5 {[%emt 0:00:04]} 14. a4 {[%emt 0:00:07]} ({White should try} 14. Qd2 $14) 14... Ne8 $11 {[%emt 0:02:21]} 15. Ra3 {[%emt 0:09:54]} f5 {[%emt 0:02:36]} 16. exf5 {[%emt 0:01:35]} gxf5 {[%emt 0:00:05]} 17. f4 {[%emt 0:00:29]} e4 {[%emt 0:01:22]} 18. Rb3 {[%emt 0:08:04]} Kh8 {[%emt 0:03:01]} (18... Qh4 {with more complications.} 19. Kh2 Kh8 20. g4 fxg4 21. Bxg4 Bxg4 22. Qxg4 Qe7) 19. Nb5 {[%emt 0:07:25]} c6 {[%emt 0:12:46]} 20. dxc6 {[%emt 0:03:17]} Bxc6 {[%emt 0:01:06]} 21. Qd2 {[%emt 0:00:47]} Bxb5 {[%emt 0:02:41]} (21... Rf7 $11 {keeps the balance.}) 22. axb5 {[%emt 0:07:59]} ({But not} 22. Rxb5 $6 Nc7 $11) (22. cxb5 $16 {And now b6 would win.} Nc7 23. b6) 22... Nc7 $1 {[%emt 0:01:56]} 23. Ra3 {[%emt 0:07:15]} Ne6 {[%emt 0:06:37]} 24. Rfa1 {[%emt 0:02:31][%cal Ra3a5,Bf1a1,Ba1a5,Ba5a7,Ba7d7][%mdl 32]} Bd4 {[%emt 0:04:47]} 25. Bf1 {[%emt 0:01:20]} Qf6 {[%emt 0:01:11]} 26. Rxa5 {[%emt 0:01:09]} Rxa5 {[%emt 0:06:47]} (26... Rad8 {keeps more tension.} 27. Qf2 Bxe3 28. Qxe3 Qd4) 27. Rxa5 {[%emt 0:00:09]} Bxe3+ {[%emt 0:06:55]} 28. Qxe3 {[%emt 0:00:06]} Qxb2 {[%emt 0:00:11]} 29. Ra7 {[%emt 0:11:29] Threatening Rd7.} Rg8 {[%emt 0:13:22] The position is equal.} 30. Qf2 {[%emt 0:06:36]} Qd4 {[%emt 0:01:13]} 31. Qxd4+ {[%emt 0:04:44]} cxd4 {[%emt 0:00:08]} 32. Rd7 $1 {[%emt 0:03:28]} Rd8 {[%emt 0:18:55] Weighted Error Value: White=0.11 (very precise) /Black=0.13 (very precise)} 1/2-1/2

[Event "Teplice Open 2022"]
[Site "Teplice"]
[Date "2022.06.20"]
[Round "3.14"]
[White "Fataliyeva, Ulviyya"]
[Black "Blomqvist, Erik"]
[Result "1-0"]
[ECO "D24"]
[WhiteElo "2348"]
[BlackElo "2523"]
[Annotator "TA"]
[PlyCount "93"]
[EventDate "2022.06.18"]
[EventType "swiss"]
[EventCountry "CZE"]
[SourceTitle "playchess.com"]
[Source "ChessBase"]
[SourceQuality "1"]
[TimeControl "40/5400+30:1800+30"]

{[%evp 9,93,24,16,0,0,16,12,20,37,20,37,0,0,0,0,0,30,41,53,17,25,17,40,53,50,46,52,0,0,-11,-1,-95,-93,-96,-91,-132,-23,-46,-50,-49,-50,-44,21,21,27,19,233,235,375,0,0,0,0,0,0,0,0,0,0,-24,-22,-37,-40,-57,-54,-54,10,10,87,68,545,556,29971,29972,29965,29954,29973,29974,29991,29992,29994,29995,29995,29996,29998,29999]} 1. d4 {[%emt 0:01:15]} Nf6 {[%emt 0:00:17]} 2. c4 {[%emt 0:00:05]} e6 {[%emt 0:00:08]} 3. Nf3 {[%emt 0:00:04]} d5 {[%emt 0:00:23]} 4. Nc3 {[%emt 0:00:23]} dxc4 {[%emt 0:00:42]} 5. e4 {[%emt 0:00:10]} Bb4 {[%emt 0:00:23]} 6. Bxc4 {[%emt 0:03:45] Black should prevent 0-0. D24: Queen's Gambit Accepted: 3 Nf3 Nf6 4 Nc3.} Nxe4 {[%emt 0:01:39]} 7. O-O {[%emt 0:00:06]} Nf6 {[%emt 0:02:38]} 8. Qa4+ {[%emt 0:08:37] The position is equal.} Nc6 {[%emt 0:01:29]} 9. Ne5 {[%emt 0:07:57]} Rb8 {[%emt 0:06:29]} (9... Bd7 10. Nxc6 Bxc3 11. Nxd8 $16) 10. Bb5 {[%emt 0:04:34] [#]} (10. d5 $5 exd5 11. Nxc6 bxc6 12. Nxd5 $1 Nxd5 13. Qxc6+ Bd7 14. Qxd5 $14) 10... O-O $146 {[%emt 0:20:54]} ({Predecessor:} 10... Bd7 11. Bg5 Bxc3 12. bxc3 Nxe5 13. dxe5 Bxb5 14. Qxb5+ Qd7 15. Qe2 Nd5 16. c4 h6 {0-1 (41) Wu,D (2032)-Bodek,M (2395) Greensboro 2019}) 11. Bxc6 {[%emt 0:09:00]} bxc6 {[%emt 0:00:14]} 12. Bg5 {[%emt 0:09:39]} Bxc3 {[%emt 0:55:45]} 13. bxc3 {[%emt 0:01:13]} Qd6 {[%emt 0:00:42]} 14. Bc1 {[%emt 0:16:39]} (14. Qxa7 Rb7 15. Qa8 c5 $11) 14... Re8 {[%emt 0:05:01]} 15. Ba3 {[%emt 0:08:57] Against c5} Qd5 {[%emt 0:00:02]} 16. Qxa7 {[%emt 0:03:44]} Rb7 {[%emt 0:00:02]} 17. Qa4 {[%emt 0:01:22]} Ne4 {[%emt 0:00:22]} 18. c4 {[%emt 0:04:26]} ({Much worse is} 18. Qxc6 Qxc6 19. Nxc6 Nxc3 $15) (18. Bb4 $14) 18... Qxd4 $11 {[%emt 0:01:23]} 19. Nxc6 {[%emt 0:00:39]} Nc3 $1 {[%emt 0:00:55]} (19... Bd7 $2 20. Rad1 Nd2 21. Nxd4 $18) 20. Qa5 {[%emt 0:08:39]} (20. Nxd4 $11 {keeps the balance.} Nxa4 21. Rac1) 20... Qxc4 $17 {[%emt 0:00:27]} 21. Ne7+ {[%emt 0:00:45]} Kh8 {[%emt 0:00:23] And now ...Rb5 would win.} 22. Qh5 {[%emt 0:05:48]} e5 {[%emt 0:00:39]} (22... c5 $17 23. Qxc5 Qxc5 24. Bxc5 Rexe7 25. Bxe7 Rxe7) 23. Qxe5 {[%emt 0:02:11][%cal Oe7g6]} Be6 {[%emt 0:00:30]} 24. Rfe1 {[%emt 0:00:25] Hoping for Rac1.} (24. Nf5 $2 f6 25. Qe3 Ne2+ 26. Kh1 Rb5 $17) 24... Rb5 {[%emt 0:00:11]} 25. Qe3 {[%emt 0:00:34] Black must now prevent Rac1.} Ra5 {[%emt 0:00:48]} (25... Nxa2 $15 26. h3 Ra5) 26. Bb2 $11 {[%emt 0:00:18]} Na4 {[%emt 0:00:16]} 27. Rac1 {[%emt 0:01:54]} Qxa2 {[%emt 0:00:30]} (27... Qg4 $11 28. f3 Qh4) 28. Ba1 $1 $18 {[%emt 0:00:36]} Nb6 {[%emt 0:00:22] [#]} (28... Rxe7 $2 29. Qd4 f6 30. Qd8+ Bg8 31. Rxe7 $18) (28... Rb5 {was necessary.} 29. Qd4 (29. Rxc7 Nb2 $16) 29... Nb2) 29. Qg3 $2 {[%emt 0:00:36]} f6 $11 {[%emt 0:00:25]} 30. Qxc7 {[%emt 0:00:25]} Ra7 {[%emt 0:00:52]} 31. Qxb6 $40 {[%emt 0:00:10][%mdl 128] Black needs to defend precisely.} Raxe7 {[%emt 0:00:07]} 32. h4 {[%emt 0:00:22]} Qa8 {[%emt 0:00:40][%cal Oe6h3] aiming for ...Bh3!} 33. Qb4 {[%emt 0:00:34]} Ra7 {[%emt 0:00:44]} 34. h5 {[%emt 0:00:55][%cal Oh5h6]} h6 {[%emt 0:00:28]} 35. Qd6 {[%emt 0:00:34]} Ra6 {[%emt 0:00:34]} 36. Qg3 {[%emt 0:00:18]} Bf7 {[%emt 0:00:15] Strongly threatening ...Rxe1+.} 37. Rxe8+ {[%emt 0:00:44]} Bxe8 {[%emt 0:00:02] [#]} (37... Qxe8 $15 38. Bc3 Bxh5) 38. Rc7 $1 {[%emt 0:00:33][%csl Gc7][%cal Rg3g7]} g5 {[%emt 0:01:18]} (38... Rxa1+ $11 39. Kh2 Bg6 40. hxg6 (40. Qxg6 Rh1+ 41. Kxh1 Qa1+ 42. Kh2 Qe5+ 43. g3 Qxc7 $11) 40... Qb8) (38... Bf7 39. Rxf7) 39. Bd4 {[%emt 0:00:21] White threatens Qd3 and mate. White is more active.} Qe4 {[%emt 0:00:29][%mdl 8192] Against Qd3} (39... Qd5 $14 40. Qd3 Ra1+ 41. Kh2 Qd6+ 42. g3 Rh1+ 43. Kxh1 Qxc7) 40. Qc3 $18 {[%emt 0:00:20]} Qb1+ {[%emt 0:00:00]} 41. Kh2 {[%emt 0:00:00] White mates.} Qf5 {[%emt 0:24:40] [#]} 42. Re7 $1 {[%emt 0:04:48]} ({Not} 42. Rc8 Re6 $18) 42... Bxh5 {[%emt 0:02:00]} 43. Qb2 {[%emt 0:00:21]} Rc6 {[%emt 0:05:19]} 44. Qb8+ {[%emt 0:00:36]} Rc8 {[%emt 0:00:32] [#]} 45. Bxf6+ $1 {[%emt 0:00:20][%mdl 512]} Kg8 {[%emt 0:00:03]} 46. Rg7+ {[%emt 0:00:10]} Kf8 {[%emt 0:00:11]} 47. Qd6+ {[%emt 0:00:05] Weighted Error Value: White=0.18 (very precise) /Black=0.57} 1-0